fUST/lending_fUST_20250707
["ID","MTS","AMOUNT","RATE_DAILY","PERIOD"]
[370005251,1751825451754,-460.0,0.0001799,2]
[370005252,1751825451764,-460.0,0.0001799,2]
[370005253,1751825451774,-460.0,0.0001799,2]
[370005254,1751825451783,-153.449117,0.0001799,2]
[370005255,1751825451795,-460.0,0.0001799,2]
[370005256,1751825451804,-460.0,0.00017991,2]
[370005257,1751825451813,-460.0,0.00017991,2]
[370005258,1751825451822,-460.0,0.00017991,2]
[370005259,1751825451832,-460.0,0.00017991,2]
[370005260,1751825451841,-460.0,0.00017991,2]
[370005261,1751825451850,-460.0,0.00017991,2]
[370005262,1751825451859,-460.0,0.00017991,2]
[370005263,1751825451868,-217.735958,0.00017991,2]
[370005264,1751825451877,-217.735958,0.00017991,2]
[370005265,1751825451887,-460.0,0.00017991,2]
[370005266,1751825451896,-460.0,0.00017991,2]
[370005267,1751825451905,-678.812651,0.00017991,2]
[370005268,1751825451914,-173.184564,0.00017991,2]
[370005269,1751825451923,-678.812651,0.00017991,2]
[370005270,1751825451932,-460.0,0.00017991,2]
[370005271,1751825451942,-460.0,0.00017991,2]
[370005272,1751825451951,-382.31340863,0.00017992,2]
[370005273,1751825451963,-151.0,0.00017993,2]
[370005274,1751825451973,-151.0,0.00017993,2]
[370005275,1751825451982,-356.079988,0.00017993,2]
[370005276,1751825451992,-356.079988,0.00017993,2]
[370005277,1751825452002,-662.728744,0.00017993,2]
[370005278,1751825452013,-662.728744,0.00017993,2]
[370005279,1751825452022,-151.0,0.00017993,2]
[370005280,1751825452032,-460.0,0.00017993,2]
[370005281,1751825452043,-460.0,0.00017993,2]
[370005282,1751825452053,-460.0,0.00017993,2]
[370005283,1751825452063,-460.0,0.00017993,2]
[370005284,1751825452072,-460.0,0.00017993,2]
[370005285,1751825452082,-748.32,0.00017993,2]
[370005286,1751825452092,-474.64,0.00017993,2]
[370005287,1751825452101,-2868.44,0.00017993,2]
[370005288,1751825452111,-890.41,0.00017993,2]
[370005289,1751825452120,-703.69,0.00017993,2]
[370005290,1751825452130,-1143.81,0.00017993,2]
[370005291,1751825452140,-460.0,0.00017993,2]
[370005292,1751825452149,-151.0,0.00017994,2]
[370005293,1751825452158,-151.0,0.00017994,2]
[370005294,1751825452167,-243.336396,0.00017994,2]
[370005295,1751825452177,-243.336396,0.00017994,2]
[370005296,1751825452186,-151.0,0.00017994,2]
[370005297,1751825452195,-151.0,0.00017994,2]
[370005298,1751825452206,-151.0,0.00017994,2]
[370005299,1751825452214,-151.0,0.00017994,2]
[370005300,1751825452224,-460.0,0.00017994,2]
[370005301,1751825452234,-460.0,0.00017994,2]
[370005302,1751825452243,-1781.95,0.00017994,2]
[370005303,1751825452252,-460.0,0.00017994,2]
[370005304,1751825452262,-460.0,0.00017994,2]
[370005305,1751825452272,-1163.59,0.00017994,2]
[370005306,1751825452281,-623.8679749,0.00017994,2]
[370005307,1751825452419,-2442.3520251,0.00017994,2]
[370005308,1751825452429,-961.62,0.00017994,2]
[370005309,1751825452439,-151.0,0.00017995,2]
[370005310,1751825452448,-200.0,0.00017995,2]
[370005311,1751825452458,-460.0,0.00017995,2]
[370005312,1751825452467,-822.865023,0.00017995,2]
[370005313,1751825452476,-822.865023,0.00017995,2]
[370005314,1751825452486,-460.0,0.00017995,2]
[370005315,1751825452495,-460.0,0.00017995,2]
[370005316,1751825452504,-460.0,0.00017995,2]
[370005317,1751825452513,-460.0,0.00017995,2]
[370005318,1751825452523,-242.847956,0.00017995,2]
[370005319,1751825452532,-151.0,0.00017995,2]
[370005320,1751825452542,-242.847958,0.00017995,2]
[370005321,1751825452551,-582.208626,0.00017995,2]
[370005322,1751825452560,-582.208636,0.00017995,2]
[370005323,1751825452569,-151.0,0.00017996,2]
[370005324,1751825452578,-312.143871,0.00017996,2]
[370005325,1751825452588,-312.143871,0.00017996,2]
[370005326,1751825452597,-151.0,0.00017996,2]
[370005327,1751825452607,-237.746125,0.00017996,2]
[370005328,1751825452616,-237.746125,0.00017996,2]
[370005329,1751825452625,-151.0,0.00017996,2]
[370005330,1751825452635,-160.329056,0.00017996,2]
[370005331,1751825452644,-460.0,0.00017996,2]
[370005332,1751825452654,-217.735958,0.00017996,2]
[370005333,1751825452664,-217.735966,0.00017996,2]
[370005334,1751825452674,-200.0,0.00017996,2]
[370005335,1751825452683,-678.812651,0.00017996,2]
[370005336,1751825452693,-678.812648,0.00017996,2]
[370005337,1751825452702,-828.22200964,0.00017999,2]
[370005338,1751825452711,-151.0,0.00018028,2]
[370005339,1751825452721,-662.728744,0.00018028,2]
[370005340,1751825452730,-662.728742,0.00018028,2]
[370005341,1751825452739,-151.0,0.00018028,2]
[370005342,1751825452748,-151.0,0.0001803,2]
[370005343,1751825452757,-151.0,0.0001803,2]
[370005344,1751825452767,-151.0,0.0001803,2]
[370005345,1751825452776,-151.0,0.0001803,2]
[370005346,1751825452785,-151.0,0.0001803,2]
[370005347,1751825452795,-151.0,0.0001803,2]
[370005348,1751825452804,-151.0,0.0001803,2]
[370005349,1751825452813,-151.0,0.0001803,2]
[370005350,1751825452823,-151.0,0.0001803,2]
[370005351,1751825452833,-151.0,0.0001803,2]
[370005352,1751825452842,-151.0,0.0001803,2]
[370005353,1751825452851,-151.0,0.0001803,2]
[370005354,1751825452860,-151.0,0.0001803,2]
[370005355,1751825452870,-151.0,0.0001803,2]
[370005356,1751825452879,-151.0,0.0001803,2]
[370005357,1751825452888,-151.0,0.0001803,2]
[370005358,1751825452898,-312.143871,0.0001803,2]
[370005359,1751825452907,-312.143871,0.0001803,2]
[370005360,1751825452917,-151.0,0.0001803,2]
[370005361,1751825452926,-822.865023,0.0001803,2]
[370005362,1751825452936,-822.865023,0.0001803,2]
[370005363,1751825452945,-852.874222,0.0001803,2]
[370005364,1751825452954,-852.874222,0.0001803,2]
[370005365,1751825452967,-852.874222,0.0001803,2]
[370005366,1751825452977,-852.874222,0.0001803,2]
[370005367,1751825452986,-237.746125,0.0001803,2]
[370005368,1751825452995,-237.746125,0.0001803,2]
[370005369,1751825453006,-243.336396,0.0001803,2]
[370005370,1751825453015,-243.336396,0.0001803,2]
[370005371,1751825453025,-151.0,0.0001803,2]
[370005372,1751825453034,-151.0,0.0001803,2]
[370005373,1751825453045,-151.0,0.0001803,2]
[370005374,1751825453056,-151.0,0.0001803,2]
[370005375,1751825453066,-151.0,0.0001803,2]
[370005376,1751825453075,-151.0,0.0001803,2]
[370005377,1751825453084,-151.0,0.0001803,2]
[370005378,1751825453093,-151.0,0.0001803,2]
[370005379,1751825453102,-356.079988,0.0001803,2]
[370005380,1751825453111,-356.079988,0.0001803,2]
[370005381,1751825453120,-356.079988,0.0001803,2]
[370005382,1751825453129,-356.079988,0.0001803,2]
[370005383,1751825453138,-243.336396,0.00018049,2]
[370005384,1751825453148,-243.336396,0.00018049,2]
[370005385,1751825453158,-151.0,0.00018049,2]
[370005386,1751825453167,-151.0,0.00018049,2]
[370005387,1751825453176,-151.0,0.00018049,2]
[370005388,1751825453185,-858.86622399,0.00018054,2]
[370005389,1751825453194,-151.0,0.00018093,2]
[370005390,1751825453204,-822.865023,0.00018095,2]
[370005391,1751825453213,-822.865023,0.00018095,2]
[370005392,1751825453222,-151.0,0.00018096,2]
[370005393,1751825453232,-151.0,0.00018096,2]
[370005394,1751825453242,-151.0,0.00018096,2]
[370005395,1751825453251,-151.567973,0.00018097,2]
[370005396,1751825453261,-151.0,0.00018097,2]
[370005397,1751825453270,-890.64427428,0.00018109,2]
[370005398,1751825453280,-237.746125,0.0001811,2]
[370005399,1751825453289,-237.746125,0.0001811,2]
[370005400,1751825453298,-151.0,0.0001811,2]
[370005401,1751825453308,-1000.0,0.00018148,2]
[370005402,1751825453317,-1000.0,0.00018148,2]
[370005403,1751825453327,-505.91839831,0.00018148,2]
[370005404,1751825453336,-151.0,0.00018153,2]
[370005405,1751825453345,-151.0,0.00018153,2]
[370005406,1751825453355,-923.59811243,0.00018164,2]
[370005407,1751825453364,-460.0,0.00018171,2]
[370005408,1751825453373,-460.0,0.00018171,2]
[370005409,1751825453382,-1390.21,0.00018171,2]
[370005410,1751825453392,-460.0,0.00018171,2]
[370005411,1751825453401,-460.0,0.00018171,2]
[370005412,1751825453410,-460.0,0.00018171,2]
[370005413,1751825453421,-957.77124259,0.00018219,2]
[370005414,1751825453431,-1000.0,0.00018232,2]
[370005415,1751825453441,-151.0,0.0001825,2]
[370005416,1751825453452,-151.0,0.0001825,2]
[370005417,1751825453461,-172.4531322,0.0001825,2]
[370005418,1751825453471,-852.874222,0.0001825,2]
[370005419,1751825453482,-852.874222,0.0001825,2]
[370005420,1751825453491,-171.79,0.00018264,2]
[370005421,1751825453501,-460.0,0.00018264,2]
[370005422,1751825453510,-497.68,0.00018264,2]
[370005423,1751825453519,-303.83354298,0.00018264,2]
[370005424,1751825453532,-262.56645702,0.00018264,2]
[370005425,1751825453541,-460.0,0.00018264,2]
[370005426,1751825453550,-1083.84485531,0.00018264,2]
[370005427,1751825453669,-1297.88913375,0.00018264,2]
[370005428,1751825453682,-50.77601094,0.00018264,2]
[370005429,1751825453691,-484.17305347,0.00018264,2]
[370005430,1751825453703,-708.43795877,0.00018264,2]
[370005431,1751825453714,-406.32898776,0.00018264,2]
[370005432,1751825453723,-460.0,0.00018264,2]
[370005433,1751825453732,-158.16875023,0.00018264,2]
[370005434,1751825453744,-301.83124977,0.00018264,2]
[370005435,1751825453753,-593.0,0.00018264,2]
[370005436,1751825453762,-354.21881673,0.00018264,2]
[370005437,1751825453774,-105.78118327,0.00018264,2]
[370005438,1751825453783,-707.84586598,0.00018264,2]
[370005439,1751825453794,-730.9799992,0.00018264,2]
[370005440,1751825454098,-151.0,0.00017173,2]
[370005441,1751825454108,-151.0,0.00017274,2]
[370005442,1751825454118,-318.0,0.00017275,2]
[370005443,1751825454127,-101.06662817,0.00017442,2]
[370005444,1751825454139,-49.93337183,0.00017442,2]
[370005445,1751825454149,-153.433837,0.00017443,2]
[370005446,1751825454158,-151.0,0.00017724,2]
[370005447,1751825454168,-151.0,0.00017724,2]
[370005448,1751825454177,-151.0,0.00017724,2]
[370005449,1751825454186,-151.0,0.00017724,2]
[370005450,1751825454195,-151.0,0.00017724,2]
[370005451,1751825454204,-153.449117,0.00017724,2]
[370005452,1751825454213,-460.0,0.0001799,2]
[370005453,1751825454223,-153.449121,0.0001799,2]
[370005454,1751825454233,-542.10413482,0.00018264,2]
[370005455,1751825454242,-460.0,0.00018264,2]
[370005456,1751825454251,-1782.24,0.00018264,2]
[370005457,1751825454261,-2078.98,0.00018264,2]
[370005458,1751825454271,-1970.6,0.00018264,2]
[370005459,1751825454281,-460.0,0.00018264,2]
[370005460,1751825454290,-460.0,0.00018264,2]
[370005461,1751825454299,-965.27,0.00018264,2]
[370005462,1751825454308,-460.0,0.00018264,2]
[370005463,1751825454317,-460.0,0.00018264,2]
[370005464,1751825454326,-460.0,0.00018264,2]
[370005465,1751825454335,-460.0,0.00018264,2]
[370005466,1751825454344,-460.0,0.00018264,2]
[370005467,1751825454353,-460.0,0.00018264,2]
[370005468,1751825454362,-460.0,0.00018264,2]
[370005469,1751825454371,-460.0,0.00018264,2]
[370005470,1751825454380,-300.14361464,0.00018264,2]
[370005471,1751825454623,-460.0,0.00017168,2]
[370005472,1751825454632,-460.0,0.00017168,2]
[370005473,1751825454642,-151.0,0.00017173,2]
[370005474,1751825454651,-466.39030827,0.00017329,2]
[370005475,1751825465166,4141.6100014,0.00016739,2]
[370005499,1751826083095,24900.0,0.00016122,2]
[370005586,1751826154260,153.43694546,0.000161,2]
[370005587,1751826162666,826.9930064,0.00016068,2]
[370005590,1751826249933,155.98770955,0.00016801,2]
[370005591,1751826337828,1104.279137,0.00013699,2]
[370005593,1751826417102,-155.47187206,0.00016974,2]
[370005594,1751826434940,1638.5,0.00025447,60]
[370005599,1751826560012,7877.0719854,0.00016068,2]
[370005670,1751826632531,-678.70678085,0.00016968,2]
[370005671,1751826632541,-1452.63321915,0.00016974,2]
[370005672,1751826632558,-1352.85308429,0.00016974,2]
[370005673,1751826632567,-300.0,0.00017058,2]
[370005674,1751826632576,-300.0,0.00017058,2]
[370005675,1751826632586,-300.0,0.00017058,2]
[370005676,1751826632595,-300.0,0.00017058,2]
[370005677,1751826632605,-1200.0,0.00017058,2]
[370005678,1751826632615,-961.03,0.00017059,3]
[370005679,1751826632624,-480.51,0.00017059,3]
[370005680,1751826632633,-240.26,0.00017059,3]
[370005681,1751826632642,-720.78,0.00017059,3]
[370005682,1751826632651,-1200.0,0.00017066,2]
[370005683,1751826632660,-460.0,0.00017067,2]
[370005684,1751826632670,-460.0,0.00017067,2]
[370005685,1751826632679,-460.0,0.00017067,2]
[370005686,1751826632688,-1564.5,0.00017067,2]
[370005687,1751826632697,-460.0,0.00017067,2]
[370005688,1751826632706,-460.0,0.00017067,2]
[370005689,1751826632715,-460.0,0.00017067,2]
[370005690,1751826632724,-1884.65,0.00017067,2]
[370005691,1751826632736,-460.0,0.00017068,2]
[370005692,1751826632745,-460.0,0.00017068,2]
[370005693,1751826632755,-460.0,0.00017068,2]
[370005694,1751826632765,-460.0,0.00017068,2]
[370005695,1751826632775,-2658.84,0.00017068,2]
[370005696,1751826632784,-460.0,0.00017068,2]
[370005697,1751826632794,-460.0,0.00017068,2]
[370005698,1751826632803,-1896.96,0.00017068,2]
[370005699,1751826632811,-460.0,0.00017068,2]
[370005700,1751826632821,-460.0,0.00017068,2]
[370005701,1751826632830,-2235.94,0.00017068,2]
[370005702,1751826632839,-2276.24,0.00017068,2]
[370005703,1751826632849,-460.0,0.00017068,2]
[370005704,1751826632859,-1170.17,0.00017068,2]
[370005705,1751826632868,-460.0,0.00017068,2]
[370005706,1751826632877,-460.0,0.00017068,2]
[370005707,1751826632886,-1331.69,0.00017068,2]
[370005708,1751826632895,-460.0,0.00017068,2]
[370005709,1751826632904,-460.0,0.00017068,2]
[370005711,1751826632918,-460.0,0.00017068,2]
[370005712,1751826632927,-23709.6105203,0.00017069,2]
[370005724,1751826638227,-500.0,0.00017067,2]
[370005725,1751826638237,-399.13526434,0.00017067,2]
[370005726,1751826638247,-500.0,0.00017067,2]
[370005727,1751826638256,-500.0,0.00017067,2]
[370005728,1751826638266,-500.0,0.00017067,2]
[370005729,1751826638276,-500.0,0.00017067,2]
[370005730,1751826638286,-500.0,0.00017067,2]
[370005731,1751826638295,-500.0,0.00017067,2]
[370005732,1751826638305,-500.0,0.00017067,2]
[370005733,1751826638315,-500.0,0.00017067,2]
[370005734,1751826638324,-500.0,0.00017067,2]
[370005735,1751826638334,-366.22055996,0.00017067,2]
[370005736,1751826638343,-500.0,0.00017067,2]
[370005737,1751826638353,-500.0,0.00017067,2]
[370005738,1751826638363,-500.0,0.00017067,2]
[370005739,1751826638373,-1216.37,0.00017068,2]
[370005740,1751826638383,-6783.83180533,0.00017069,2]
[370005741,1751826638407,-168564.79401376,0.00017069,2]
[370005742,1751826638417,-460.0,0.00017074,2]
[370005743,1751826638427,-460.0,0.00017074,2]
[370005744,1751826638436,-460.0,0.00017074,2]
[370005745,1751826638446,-460.0,0.00017074,2]
[370005746,1751826638455,-155.0,0.00017074,2]
[370005747,1751826638465,-460.0,0.00017074,2]
[370005748,1751826638474,-460.0,0.00017074,2]
[370005749,1751826638484,-460.0,0.00017074,2]
[370005750,1751826638494,-460.0,0.00017074,2]
[370005751,1751826638503,-460.0,0.00017074,2]
[370005752,1751826638513,-460.0,0.00017074,2]
[370005753,1751826638523,-460.0,0.00017074,2]
[370005754,1751826638532,-509.88,0.00017074,2]
[370005755,1751826638541,-214.1522544,0.00017074,2]
[370005756,1751826638551,-460.0,0.00017074,2]
[370005757,1751826638560,-460.0,0.00017074,2]
[370005758,1751826638570,-508.76346539,0.00017074,2]
[370005759,1751826638579,-460.0,0.00017074,2]
[370005760,1751826638588,-460.0,0.00017074,2]
[370005761,1751826638597,-460.0,0.00017074,2]
[370005762,1751826638606,-460.0,0.00017074,2]
[370005763,1751826638615,-460.0,0.00017074,2]
[370005764,1751826638624,-460.0,0.00017074,2]
[370005765,1751826638634,-502.93,0.00017074,2]
[370005766,1751826638643,-460.0,0.00017074,2]
[370005767,1751826638653,-460.0,0.00017074,2]
[370005768,1751826638662,-460.0,0.00017074,2]
[370005769,1751826638672,-460.0,0.00017074,2]
[370005770,1751826638681,-460.0,0.00017074,2]
[370005771,1751826638691,-460.0,0.00017074,2]
[370005772,1751826638700,-460.0,0.00017074,2]
[370005773,1751826638709,-460.0,0.00017074,2]
[370005774,1751826638719,-460.0,0.00017074,2]
[370005776,1751826638728,-688.3,0.00017074,2]
[370005777,1751826638739,-3603.42,0.00017074,2]
[370005778,1751826638749,-460.0,0.00017074,2]
[370005779,1751826638758,-460.0,0.00017074,2]
[370005780,1751826638768,-538.2,0.00017074,2]
[370005781,1751826638777,-2195.31,0.00017074,2]
[370005782,1751826638786,-460.0,0.00017074,2]
[370005783,1751826638795,-1144.47,0.00017074,2]
[370005784,1751826638804,-460.0,0.00017074,2]
[370005785,1751826638813,-660.53,0.00017074,2]
[370005786,1751826638823,-460.0,0.00017074,2]
[370005787,1751826638832,-460.0,0.00017074,2]
[370005788,1751826638841,-460.0,0.00017074,2]
[370005789,1751826638851,-576.29,0.00017074,2]
[370005790,1751826638860,-1322.49,0.00017074,2]
[370005791,1751826638870,-460.0,0.00017074,2]
[370005792,1751826639033,-460.0,0.00017074,2]
[370005793,1751826639043,-1033.96,0.00017074,2]
[370005794,1751826639053,-460.0,0.00017074,2]
[370005795,1751826639062,-460.0,0.00017074,2]
[370005796,1751826639071,-460.0,0.00017074,2]
[370005797,1751826639080,-460.0,0.00017074,2]
[370005798,1751826639090,-460.0,0.00017074,2]
[370005799,1751826639099,-460.0,0.00017074,2]
[370005800,1751826639110,-460.0,0.00017075,2]
[370005801,1751826639119,-460.0,0.00017075,2]
[370005802,1751826639128,-460.0,0.00017075,2]
[370005803,1751826639138,-460.0,0.00017075,2]
[370005804,1751826639147,-500.0,0.00017075,2]
[370005805,1751826639156,-509.85,0.00017075,2]
[370005806,1751826639165,-460.0,0.00017075,2]
[370005807,1751826639175,-460.0,0.00017075,2]
[370005808,1751826639184,-460.0,0.00017075,2]
[370005809,1751826639193,-460.0,0.00017075,2]
[370005810,1751826639203,-460.0,0.00017075,2]
[370005811,1751826639213,-460.0,0.00017075,2]
[370005812,1751826639222,-637.6,0.00017075,2]
[370005813,1751826639232,-460.0,0.00017075,2]
[370005814,1751826639241,-460.0,0.00017075,2]
[370005815,1751826639250,-460.0,0.00017075,2]
[370005816,1751826639259,-460.0,0.00017075,2]
[370005817,1751826639270,-460.0,0.00017075,2]
[370005818,1751826639279,-943.87,0.00017075,2]
[370005819,1751826639290,-460.0,0.00017075,2]
[370005820,1751826639299,-460.0,0.00017075,2]
[370005821,1751826639308,-460.0,0.00017075,2]
[370005822,1751826639318,-504.04,0.00017075,2]
[370005823,1751826639327,-460.0,0.00017075,2]
[370005824,1751826639336,-1937.79,0.00017075,2]
[370005825,1751826639346,-460.0,0.00017075,2]
[370005826,1751826639355,-460.0,0.00017075,2]
[370005827,1751826639365,-460.0,0.00017075,2]
[370005828,1751826639375,-460.0,0.00017075,2]
[370005829,1751826639384,-460.0,0.00017075,2]
[370005830,1751826639393,-1308.12,0.00017075,2]
[370005831,1751826639402,-460.0,0.00017075,2]
[370005832,1751826639412,-438.25799913,0.00017075,2]
[370005833,1751826639421,-3358.32,0.00017075,2]
[370005834,1751826639430,-460.0,0.00017075,2]
[370005835,1751826639440,-524.18265194,0.00017075,2]
[370005836,1751826639449,-460.0,0.00017075,2]
[370005837,1751826639459,-500.0,0.00017075,2]
[370005838,1751826639468,-500.0,0.00017075,2]
[370005839,1751826639477,-964.78,0.00017075,2]
[370005840,1751826639486,-460.0,0.00017075,2]
[370005841,1751826639495,-500.0,0.00017075,2]
[370005842,1751826639504,-460.0,0.00017167,2]
[370005843,1751826639513,-460.0,0.00017167,2]
[370005844,1751826639522,-378.57872942,0.00017167,2]
[370005845,1751826639531,-460.0,0.00017167,2]
[370005846,1751826639540,-460.0,0.00017167,2]
[370005847,1751826639550,-460.0,0.00017167,2]
[370005848,1751826639559,-460.0,0.00017167,2]
[370005849,1751826639568,-460.0,0.00017167,2]
[370005850,1751826639577,-460.0,0.00017167,2]
[370005851,1751826639586,-460.0,0.00017167,2]
[370005852,1751826639595,-460.0,0.00017167,2]
[370005853,1751826639605,-461.24219349,0.00017167,2]
[370005854,1751826639615,-460.0,0.00017167,2]
[370005855,1751826639624,-460.0,0.00017167,2]
[370005856,1751826639634,-460.0,0.00017167,2]
[370005857,1751826639643,-151.63795567,0.00017167,2]
[370005858,1751826639652,-460.0,0.00017167,2]
[370005859,1751826639662,-279.29554518,0.00017167,2]
[370005860,1751826639671,-460.0,0.00017167,2]
[370005861,1751826639680,-460.0,0.00017167,2]
[370005862,1751826639689,-467.24816002,0.00017167,2]
[370005863,1751826639698,-460.0,0.00017167,2]
[370005864,1751826639707,-460.0,0.00017167,2]
[370005865,1751826639716,-460.0,0.00017167,2]
[370005866,1751826639725,-460.0,0.00017167,2]
[370005867,1751826639739,-460.67821854,0.00017167,2]
[370005868,1751826639748,-460.0,0.00017167,2]
[370005869,1751826639757,-460.0,0.00017167,2]
[370005870,1751826639767,-460.0,0.00017167,2]
[370005871,1751826639777,-460.0,0.00017167,2]
[370005872,1751826639786,-460.0,0.00017167,2]
[370005873,1751826639796,-460.0,0.00017167,2]
[370005874,1751826639805,-500.0,0.00017168,2]
[370005875,1751826639815,-460.0,0.00017168,2]
[370005876,1751826639825,-460.0,0.00017168,2]
[370005877,1751826639835,-460.0,0.00017168,2]
[370005879,1751826639844,-460.0,0.00017168,2]
[370005880,1751826639853,-460.0,0.00017168,2]
[370005881,1751826639863,-460.0,0.00017168,2]
[370005882,1751826639872,-460.0,0.00017168,2]
[370005883,1751826639882,-460.0,0.00017168,2]
[370005884,1751826639891,-460.0,0.00017168,2]
[370005885,1751826639901,-460.0,0.00017168,2]
[370005886,1751826639910,-460.0,0.00017168,2]
[370005887,1751826639919,-460.0,0.00017168,2]
[370005888,1751826639928,-460.0,0.00017168,2]
[370005889,1751826639939,-460.0,0.00017168,2]
[370005890,1751826639948,-460.0,0.00017168,2]
[370005891,1751826639959,-460.0,0.00017168,2]
[370005892,1751826639969,-460.0,0.00017168,2]
[370005893,1751826639978,-460.0,0.00017168,2]
[370005894,1751826639987,-460.0,0.00017168,2]
[370005895,1751826639996,-460.0,0.00017168,2]
[370005896,1751826640005,-460.0,0.00017168,2]
[370005897,1751826640015,-369.4617647,0.00017168,2]
[370005898,1751826640024,-460.0,0.0001717,2]
[370005899,1751826640034,-460.0,0.00017341,2]
[370005900,1751826640043,-460.0,0.00017341,2]
[370005901,1751826640053,-1564.5,0.00017341,2]
[370005902,1751826640061,-460.0,0.00017341,2]
[370005903,1751826640071,-460.0,0.00017341,2]
[370005904,1751826640081,-240.0,0.00017341,2]
[370005905,1751826640090,-1884.65,0.00017341,2]
[370005906,1751826640101,-154.19497099,0.00017342,2]
[370005907,1751826640111,-460.0,0.00017342,2]
[370005908,1751826640120,-2658.84,0.00017342,2]
[370005910,1751826640129,-460.0,0.00017342,2]
[370005912,1751826640139,-460.0,0.00017342,2]
[370005914,1751826640148,-1896.96,0.00017342,2]
[370005916,1751826640157,-460.0,0.00017342,2]
[370005918,1751826640167,-460.0,0.00017342,2]
[370005920,1751826640176,-2235.94,0.00017342,2]
[370005922,1751826640185,-2276.24,0.00017342,2]
[370005924,1751826640195,-460.0,0.00017342,2]
[370005926,1751826640204,-1170.17,0.00017342,2]
[370005928,1751826640214,-460.0,0.00017342,2]
[370005929,1751826640223,-460.0,0.00017342,2]
[370005932,1751826640233,-1331.69,0.00017342,2]
[370005934,1751826640243,-460.0,0.00017342,2]
[370005935,1751826640252,-460.0,0.00017342,2]
[370005938,1751826640261,-460.0,0.00017342,2]
[370005940,1751826640271,-1216.37,0.00017342,2]
[370005942,1751826640280,-460.0,0.00017348,2]
[370005943,1751826640290,-524.54352225,0.00017348,2]
[370005946,1751826640300,-460.0,0.00017348,2]
[370005948,1751826640310,-460.0,0.00017348,2]
[370005949,1751826640319,-460.0,0.00017348,2]
[370005950,1751826640328,-460.0,0.00017348,2]
[370005951,1751826640337,-460.0,0.00017348,2]
[370005952,1751826640347,-460.0,0.00017348,2]
[370005953,1751826640356,-460.0,0.00017348,2]
[370005954,1751826640367,-460.0,0.00017348,2]
[370005955,1751826640377,-460.0,0.00017348,2]
[370005956,1751826640386,-460.0,0.00017348,2]
[370005957,1751826640395,-167.19441973,0.00017348,2]
[370005958,1751826640404,-460.0,0.00017348,2]
[370005959,1751826640414,-460.0,0.00017348,2]
[370005960,1751826640423,-502.93,0.00017348,2]
[370005961,1751826640432,-299.48755337,0.00017348,2]
[370005962,1751826640442,-460.0,0.00017348,2]
[370005963,1751826640451,-460.0,0.00017348,2]
[370005964,1751826640461,-460.0,0.00017348,2]
[370005965,1751826640470,-460.0,0.00017348,2]
[370005966,1751826640480,-460.0,0.00017348,2]
[370005967,1751826640490,-460.0,0.00017348,2]
[370005968,1751826640500,-460.0,0.00017348,2]
[370005969,1751826640510,-688.3,0.00017348,2]
[370005970,1751826640520,-3603.42,0.00017348,2]